bitfinex-derivatives/quotes_BTCF0:USTF0_20210109
["timestamp","ask_amount","ask_price","bid_price","bid_amount"]
[1610212664044,0.21082608,40497.0,40496.0,0.00023119]
[1610212664944,0.13632608,40497.0,40496.0,0.00023119]
[1610212665344,0.13662795,40497.0,40496.0,0.00023119]
[1610212665848,0.20952795,40497.0,40496.0,0.00023119]
[1610212666347,0.13662795,40497.0,40496.0,0.00023119]
[1610212670651,0.21152795,40497.0,40496.0,0.00023119]
[1610212673055,0.13662795,40497.0,40496.0,0.00023119]
[1610212674155,0.21092795,40497.0,40496.0,0.00023119]
[1610212674756,0.13662795,40497.0,40496.0,0.00023119]
[1610212675658,0.20952795,40497.0,40496.0,0.00023119]
[1610212676161,0.13662795,40497.0,40496.0,0.00023119]
[1610212676762,0.13632608,40497.0,40496.0,0.00023119]
[1610212677261,0.21032608,40497.0,40496.0,0.00023119]
[1610212678062,0.13632608,40497.0,40496.0,0.00023119]
[1610212680465,0.13662799,40497.0,40496.0,0.00023119]
[1610212680967,0.13632608,40497.0,40496.0,0.00023119]
[1610212682267,0.13662798,40497.0,40496.0,0.00023119]
[1610212684370,0.13632608,40497.0,40496.0,0.00023119]
[1610212684571,0.51186331,40497.0,40496.0,0.00023119]
[1610212687574,0.37553723,40497.0,40496.0,0.00023119]
[1610212696186,0.44883723,40497.0,40496.0,0.00023119]
[1610212696687,0.37553723,40497.0,40496.0,0.00023119]
[1610212697787,0.44893723,40497.0,40496.0,0.00023119]
[1610212698586,0.37553723,40497.0,40496.0,0.00023119]
[1610212699789,0.44863723,40497.0,40496.0,0.00023119]
[1610212700489,0.37553723,40497.0,40496.0,0.00023119]
[1610212705094,0.44873723,40497.0,40496.0,0.00023119]
[1610212705494,0.37553723,40497.0,40496.0,0.00023119]
[1610212706498,0.44893723,40497.0,40496.0,0.00023119]
[1610212706897,0.37553723,40497.0,40496.0,0.00023119]
[1610212707897,0.45013723,40497.0,40496.0,0.00023119]
[1610212708097,0.37553723,40497.0,40496.0,0.00023119]
[1610212709098,0.45003723,40497.0,40496.0,0.00023119]
[1610212709498,0.45003723,40497.0,40496.0,3.75513119]
[1610212710501,0.37553723,40497.0,40496.0,0.00023119]
[1610212711302,0.37553723,40497.0,40496.0,3.79733119]
[1610212711703,0.44983723,40497.0,40496.0,3.79733119]
[1610212712104,0.37553723,40497.0,40496.0,3.79733119]
[1610212713105,0.44903723,40497.0,40496.0,3.79733119]
[1610212713707,0.37553723,40497.0,40496.0,3.79733119]
[1610212714708,0.37553723,40497.0,40496.0,0.00023119]
[1610212716409,0.44853723,40497.0,40496.0,0.00023119]
[1610212717511,0.37553723,40497.0,40496.0,0.00023119]
[1610212719414,0.44953723,40497.0,40496.0,0.00023119]
[1610212719615,0.37553723,40497.0,40496.0,0.00023119]
[1610212719815,0.37553723,40497.0,40496.0,0.01554069]
[1610212720017,0.37553723,40497.0,40496.0,0.00023119]
[1610212720217,0.37553723,40497.0,40496.0,0.0155407]
[1610212720920,0.44913723,40497.0,40496.0,0.0155407]
[1610212721318,0.37553723,40497.0,40496.0,0.0155407]
[1610212722320,0.45013723,40497.0,40496.0,0.0155407]
[1610212723323,0.37553723,40497.0,40496.0,0.0155407]
[1610212723723,0.51186331,40497.0,40496.0,0.00023119]
[1610212725324,2.01186331,40497.0,40496.0,0.00023119]
[1610212725524,2.01216516,40497.0,40496.0,0.00023119]
[1610212729132,0.51216516,40497.0,40496.0,0.00023119]
[1610212730834,2.01216516,40497.0,40496.0,0.00023119]
[1610212731034,2.00216516,40497.0,40496.0,0.00023119]
[1610212731434,2.07536516,40497.0,40496.0,0.00023119]
[1610212731635,2.00216516,40497.0,40496.0,0.00023119]
[1610212732736,3.00216516,40497.0,40496.0,0.00023119]
[1610212733941,3.00216516,40497.0,40495.0,0.45263832]
[1610212734540,0.0003019,40496.0,40495.0,0.45263832]
[1610212735642,0.4474019,40496.0,40495.0,0.45263832]
[1610212735846,2.0609019,40496.0,40495.0,0.45263832]
[1610212738545,2.07171071,40496.0,40495.0,0.45263832]
[1610212738745,3.07171071,40496.0,40495.0,0.45263832]
[1610212738946,3.07606446,40496.0,40495.0,0.45263832]
[1610212739646,3.08371775,40496.0,40495.0,0.45263832]
[1610212739846,3.07606446,40496.0,40495.0,0.45263832]
[1610212740647,3.51127451,40496.0,40495.0,0.45263832]
[1610212740846,3.51127451,40496.0,40495.0,0.43433832]
[1610212741048,4.05147903,40496.0,40495.0,0.29483832]
[1610212741347,4.41357161,40496.0,40495.0,0.29483832]
[1610212743648,4.41357161,40496.0,40495.0,0.23383832]
[1610212744049,5.07282848,40496.0,40495.0,0.23383832]
[1610212744551,5.61602566,40496.0,40495.0,0.23383832]
[1610212744750,10.61602566,40496.0,40495.0,0.23383832]
[1610212745150,11.36485951,40496.0,40495.0,0.23383832]
[1610212745450,10.61602566,40496.0,40495.0,0.23383832]
[1610212747852,10.07282848,40496.0,40495.0,0.17283832]
[1610212748052,10.6160829,40496.0,40495.0,0.17283832]
[1610212748552,10.6160829,40496.0,40495.0,0.15863832]
[1610212749454,10.6160829,40496.0,40495.0,0.03543832]
[1610212750255,11.36304342,40496.0,40495.0,0.03392923]
[1610212750854,7.20816525,40496.0,40495.0,0.03392923]
[1610212751156,6.36304342,40496.0,40495.0,0.03392923]
[1610212752859,5.36304342,40496.0,40495.0,0.03392923]
[1610212753059,4.6160829,40496.0,40495.0,0.03392923]
[1610212754362,4.1689829,40496.0,40495.0,0.03392923]
[1610212754761,5.1689829,40496.0,40495.0,0.03392923]
[1610212754962,4.62572848,40496.0,40495.0,0.03392923]
[1610212755163,3.12572848,40496.0,40495.0,0.03392923]
[1610212755764,1.56417451,40496.0,40495.0,0.03392923]
[1610212756164,1.1135,40496.0,40495.0,0.03392923]
[1610212756764,0.1135,40496.0,40495.0,0.03392923]
[1610212756964,0.50186331,40497.0,40495.0,0.03392923]
[1610212757768,0.00030206,40496.0,40495.0,0.03392923]
[1610212757964,0.60054331,40497.0,40495.0,0.03392923]
[1610212759868,0.0732,40496.0,40495.0,0.03392923]
[1610212760066,0.07350205,40496.0,40495.0,0.03392923]
[1610212760466,0.00030205,40496.0,40495.0,0.03392923]
[1610212764776,0.07390205,40496.0,40495.0,0.03392923]
[1610212765277,0.00030205,40496.0,40495.0,0.03392923]
[1610212766176,0.07350205,40496.0,40495.0,0.03392923]
[1610212767680,0.00030205,40496.0,40495.0,0.03392923]
[1610212768079,0.13662813,40496.0,40495.0,0.03392923]
[1610212768781,0.21102813,40496.0,40495.0,0.03392923]
[1610212769481,0.13662813,40496.0,40495.0,0.03392923]
[1610212770484,0.21152813,40496.0,40495.0,0.03392923]
[1610212770883,1.21152813,40496.0,40495.0,0.03392923]
[1610212771785,2.63662813,40496.0,40495.0,0.02482923]
[1610212772885,1.63662813,40496.0,40495.0,0.02482923]
[1610212774889,2.63662813,40496.0,40495.0,0.02482923]
[1610212775389,2.63976383,40496.0,40495.0,0.02482923]
[1610212775789,2.65932747,40496.0,40495.0,0.02482923]
[1610212776189,2.65171124,40496.0,40495.0,0.02482923]
[1610212776590,3.08488278,40496.0,40495.0,0.02482923]
[1610212777289,2.65171488,40496.0,40495.0,0.02482923]
[1610212777490,2.65171488,40496.0,40495.0,0.00042923]
[1610212777690,3.0849835,40496.0,40495.0,0.00042923]
[1610212778390,3.62300102,40496.0,40495.0,0.00042923]
[1610212778791,2.98510999,40496.0,40495.0,0.00042923]
[1610212780892,3.98510999,40496.0,40495.0,0.00042923]
[1610212781392,4.01525779,40496.0,40495.0,0.00042923]
[1610212781793,4.67353545,40496.0,40495.0,0.00042923]
[1610212782395,4.01525779,40496.0,40495.0,0.00042923]
[1610212782595,4.59965779,40496.0,40495.0,0.00042923]
[1610212782795,5.25816625,40496.0,40495.0,0.00042923]
[1610212782995,5.22801845,40496.0,40495.0,0.00042923]
[1610212783196,2.48510999,40496.0,40495.0,0.00042923]
[1610212784800,1.48510999,40496.0,40495.0,0.00042923]
[1610212784997,1.12300102,40496.0,40495.0,0.00042923]
[1610212785397,0.60010689,40496.0,40495.0,0.00042923]
[1610212785596,0.60010689,40496.0,40495.0,0.42942923]
[1610212785800,0.14426658,40496.0,40495.0,0.42942923]
[1610212786198,0.13977334,40496.0,40495.0,0.42942923]
[1610212786398,0.14741231,40496.0,40495.0,0.42942923]
[1610212786598,0.22121231,40496.0,40495.0,0.42942923]
[1610212786799,0.1442671,40496.0,40495.0,0.42942923]
[1610212787901,0.2185671,40496.0,40495.0,0.42942923]
[1610212788102,0.21407475,40496.0,40495.0,0.42942923]
[1610212788500,0.22171843,40496.0,40495.0,0.42942923]
[1610212788802,0.14427181,40496.0,40495.0,0.42942923]
[1610212790304,0.15941329,40496.0,40495.0,0.42942923]
[1610212790604,0.15176961,40496.0,40495.0,0.42942923]
[1610212791005,0.22596961,40496.0,40495.0,0.42942923]
[1610212791705,0.66098147,40496.0,40495.0,0.42942923]
[1610212791905,0.58678147,40496.0,40495.0,0.42942923]
[1610212792906,0.66138147,40496.0,40495.0,0.42942923]
[1610212793107,0.58678147,40496.0,40495.0,0.42942923]
[1610212794309,0.66028147,40496.0,40495.0,0.42942923]
[1610212794710,0.58678147,40496.0,40495.0,0.42942923]
[1610212795612,1.12747863,40496.0,40495.0,0.42942923]
[1610212795811,1.20057863,40496.0,40495.0,0.42942923]
[1610212796014,1.56265944,40496.0,40495.0,0.42942923]
[1610212796512,1.48955944,40496.0,40495.0,0.42942923]
[1610212797514,1.56265944,40496.0,40495.0,0.42942923]
[1610212797915,1.48955944,40496.0,40495.0,0.42942923]
[1610212798115,0.58678147,40496.0,40495.0,0.42942923]
[1610212801222,0.66128147,40496.0,40495.0,0.42942923]
[1610212801424,0.58678147,40496.0,40495.0,0.42942923]
[1610212802523,0.66038147,40496.0,40495.0,0.42942923]
[1610212803123,1.12752749,40496.0,40495.0,0.42942923]
[1610212803323,1.48961405,40496.0,40495.0,0.42942923]
[1610212804124,1.56321405,40496.0,40495.0,0.42942923]
[1610212805530,0.66038147,40496.0,40495.0,0.42942923]
[1610212806632,1.56330707,40496.0,40495.0,0.42942923]
[1610212809236,1.48970707,40496.0,40495.0,0.42942923]
[1610212810034,0.58678147,40496.0,40495.0,0.42942923]
[1610212810235,0.66018147,40496.0,40495.0,0.42942923]
[1610212810437,0.58678147,40496.0,40495.0,0.42942923]
[1610212811436,0.68658512,40496.0,40495.0,0.42942923]
[1610212812238,0.21042813,40496.0,40495.0,0.42942923]
[1610212813240,0.21042813,40496.0,40495.0,0.42966074]
[1610212814347,0.13662813,40496.0,40495.0,0.56598682]
[1610212815347,0.13662813,40496.0,40495.0,0.42966074]
[1610212815545,0.21002813,40496.0,40495.0,0.42966074]
[1610212815945,0.21002813,40496.0,40495.0,0.42942923]
[1610212816143,0.21002813,40496.0,40495.0,0.42966072]
[1610212816344,0.13662813,40496.0,40495.0,0.42966072]
[1610212816544,0.13662813,40496.0,40495.0,0.42942923]
[1610212817444,0.20992813,40496.0,40495.0,0.42942923]
[1610212819146,0.13662813,40496.0,40495.0,0.42942923]
[1610212820849,0.20952813,40496.0,40495.0,0.42942923]
[1610212823153,0.13662813,40496.0,40495.0,0.42942923]
[1610212824151,0.21002813,40496.0,40495.0,0.42942923]
[1610212824352,0.13662813,40496.0,40495.0,0.42942923]
[1610212825354,0.21062813,40496.0,40495.0,0.42942923]
[1610212826554,0.13662813,40496.0,40495.0,0.42942923]
[1610212827656,0.21102813,40496.0,40495.0,0.42942923]
[1610212828056,0.13662813,40496.0,40495.0,0.42942923]
[1610212830358,0.21062813,40496.0,40495.0,0.42942923]
[1610212830559,0.13662813,40496.0,40495.0,0.42942923]
[1610212830960,0.36553723,40497.0,40495.0,0.42942923]
[1610212831559,0.0731,40496.0,40495.0,0.42942923]
[1610212831760,0.07340199,40496.0,40495.0,0.42942923]
[1610212832359,0.20972807,40496.0,40495.0,0.42942923]
[1610212832560,0.13632608,40496.0,40495.0,0.42942923]
[1610212832762,0.36553723,40497.0,40495.0,0.42942923]
[1610212832963,0.36553723,40497.0,40496.0,0.00023146]
[1610212834364,0.36553723,40497.0,40496.0,0.13655754]
[1610212844174,0.36553723,40497.0,40496.0,0.00023146]
[1610212844373,0.50186331,40497.0,40496.0,0.00023146]
[1610212844573,0.50186331,40497.0,40495.0,0.00042923]
[1610212851379,0.50186331,40497.0,40495.0,0.58322923]
[1610212852882,0.50186331,40497.0,40496.0,0.00023156]
[1610212853082,0.50186331,40497.0,40495.0,0.58322923]
[1610212853284,0.50186331,40497.0,40496.0,0.00023157]
[1610212853582,0.36553723,40497.0,40496.0,0.00023157]
[1610212854384,0.36553723,40497.0,40496.0,0.13655765]
[1610212854583,0.36553723,40497.0,40496.0,4.09825765]
[1610212855385,0.36553723,40497.0,40496.0,0.13655765]
[1610212856385,0.50186331,40497.0,40496.0,0.13655765]
[1610212856583,0.50186331,40497.0,40496.0,0.00023157]
[1610212858784,0.50186331,40497.0,40495.0,0.00042923]
[1610212859184,0.00030198,40496.0,40495.0,0.00042923]
[1610212859584,0.00030198,40496.0,40495.0,0.00066082]
[1610212859984,0.00030198,40496.0,40495.0,0.00042923]
[1610212861987,3.47120198,40496.0,40495.0,0.00042923]
[1610212862788,3.47434783,40496.0,40495.0,0.00042923]
[1610212862989,4.47434783,40496.0,40495.0,0.00042923]
[1610212863190,4.47884201,40496.0,40495.0,0.00042923]
[1610212863593,1.00794201,40496.0,40495.0,0.00042923]
[1610212863992,1.02307231,40496.0,40495.0,0.00042923]
[1610212864394,1.00794201,40496.0,40495.0,0.00042923]
[1610212864794,0.00344779,40496.0,40495.0,0.00042923]
[1610212865595,0.01108739,40496.0,40495.0,0.00042923]
[1610212865798,0.00344779,40496.0,40495.0,0.00042923]
[1610212866197,0.00030198,40496.0,40495.0,0.00042923]
[1610212866995,0.00794183,40496.0,40495.0,0.00042923]
[1610212867696,0.01543151,40496.0,40495.0,0.00042923]
[1610212868100,0.00794167,40496.0,40495.0,0.00042923]
[1610212868499,0.02307068,40496.0,40495.0,0.00042923]
[1610212868902,0.01543099,40496.0,40495.0,0.00042923]
[1610212869302,0.00794132,40496.0,40495.0,0.00042923]
[1610212869702,0.01543069,40496.0,40495.0,0.00042923]
[1610212870104,0.46494311,40496.0,40495.0,0.00042923]
[1610212870503,0.4498144,40496.0,40495.0,0.00042923]
[1610212872005,0.01542793,40496.0,40495.0,0.00042923]
[1610212872204,0.08952793,40496.0,40495.0,0.00042923]
[1610212872405,5.17999972,40496.0,40495.0,0.00042923]
[1610212872605,3.60589972,40496.0,40495.0,0.00042923]
[1610212872805,5.50730692,40496.0,40495.0,0.00042923]
[1610212873808,6.1662499,40496.0,40495.0,0.00042923]
[1610212874608,3.0100499,40496.0,40495.0,0.00042923]
[1610212874809,6.9188499,40496.0,40495.0,0.00042923]
[1610212875410,7.46208396,40496.0,40495.0,0.00042923]
[1610212876111,8.21048201,40496.0,40495.0,0.00042923]
[1610212877010,9.71048201,40496.0,40495.0,0.00042923]
[1610212877811,9.99518201,40496.0,40495.0,0.00042923]
[1610212878011,6.93150308,40496.0,40453.0,0.10439]
[1610212878211,3.8026,40478.0,40453.0,0.10439]
[1610212878411,0.13632608,40454.0,40441.0,3.7857]
[1610212878611,0.13632608,40454.0,40440.0,0.13632608]
[1610212879012,0.13632608,40454.0,40441.0,0.0002317]
[1610212879212,0.13632608,40454.0,40441.0,0.0979917]
[1610212879813,0.13632608,40454.0,40442.0,0.0002317]
[1610212880414,0.13632608,40443.0,40442.0,0.0002317]
[1610212880814,0.13632608,40443.0,40441.0,0.09776]
[1610212882816,3.6173,40442.0,40441.0,0.09776]
[1610212883018,3.6173,40442.0,40415.0,2.8876]
[1610212883418,3.6173,40442.0,40416.0,0.00023185]
[1610212883620,3.6173,40442.0,40416.0,0.07314185]
[1610212884223,3.6173,40442.0,40417.0,0.00023185]
[1610212884419,3.6173,40442.0,40421.0,0.13632608]
[1610212885021,3.6173,40442.0,40422.0,0.00023187]
[1610212885923,0.07369,40448.0,40416.0,0.07291]
[1610212886122,0.07369,40448.0,40422.0,3.9282]
[1610212886523,0.07369,40448.0,40428.0,0.13632608]
[1610212888124,0.2776,40457.0,40428.0,0.13632608]
[1610212888525,0.2776,40457.0,40449.0,0.13632608]
[1610212890525,0.13632608,40450.0,40449.0,0.13632608]
[1610212891129,0.13632608,40450.0,40425.0,0.1141]
[1610212891130,0.13632608,40450.0,40436.0,2.9251]
[1610212891329,0.13632608,40450.0,40425.0,0.1141]
[1610212892431,0.13632608,40426.0,40420.0,0.13632608]
[1610212894031,0.13632608,40426.0,40408.0,3.7357]
[1610212894433,0.13632608,40409.0,40405.0,0.13632608]
[1610212900737,0.10519,40415.0,40405.0,0.13632608]
[1610212901339,0.07548,40424.0,40405.0,0.13632608]
[1610212901538,0.295,40450.0,40412.0,3.367]
[1610212901939,0.00030241,40434.0,40412.0,3.367]
[1610212902141,0.09549,40434.0,40412.0,3.367]
[1610212902640,0.09549,40434.0,40426.0,0.13632608]
[1610212903141,0.09549,40434.0,40412.0,3.367]
[1610212903340,0.0003024,40433.0,40412.0,3.367]
[1610212904541,0.0003024,40433.0,40420.0,0.13632608]
[1610212904942,0.09549,40434.0,40420.0,0.13632608]
[1610212905643,0.0003024,40433.0,40420.0,0.13632608]
[1610212906146,0.09549,40434.0,40420.0,0.13632608]
[1610212906546,0.13632608,40421.0,40420.0,0.13632608]
[1610212908951,0.13632608,40421.0,40409.0,3.22646]
[1610212910552,0.09549,40434.0,40409.0,3.22646]
[1610212910553,0.09549,40434.0,40415.0,0.13632608]
[1610212911053,0.1556,40439.0,40415.0,0.13632608]
[1610212911252,0.00030243,40433.0,40415.0,0.13632608]
[1610212911454,0.11966,40435.0,40415.0,0.13632608]
[1610212911654,0.00030243,40432.0,40415.0,0.13632608]
[1610212911855,0.00030243,40434.0,40415.0,0.13632608]
[1610212912255,0.00030243,40431.0,40415.0,0.13632608]
[1610212912455,0.00030243,40433.0,40415.0,0.13632608]
[1610212912656,0.13632608,40416.0,40415.0,0.13632608]
[1610212918363,0.13632608,40416.0,40415.0,0.13655834]
[1610212920266,0.13632608,40416.0,40415.0,0.00023226]
[1610212920464,0.13632608,40416.0,40409.0,0.10456]
[1610212920664,0.13632608,40410.0,40398.0,3.4974]
[1610212921267,0.13632608,40410.0,40399.0,0.01579192]
[1610212922769,3.4359,40426.0,40405.0,0.13632608]
[1610212923370,0.00030246,40425.0,40406.0,0.00023216]
[1610212924672,0.00030246,40425.0,40417.0,0.13632608]
[1610212925072,0.00030246,40425.0,40418.0,0.00023216]
[1610212925672,0.00030244,40433.0,40418.0,0.00023216]
[1610212925872,0.00030244,40424.0,40419.0,0.00023215]
[1610212926271,0.00030244,40432.0,40419.0,0.00023215]
[1610212926472,0.00030244,40423.0,40418.0,0.00023215]
[1610212926671,0.00030244,40431.0,40422.0,0.13632608]
[1610212927072,0.2765,40434.0,40422.0,0.13632608]
[1610212927277,0.00030242,40433.0,40423.0,0.00023213]
[1610212928071,0.00030242,40433.0,40424.0,3.3732]
[1610212928471,0.00030242,40434.0,40425.0,0.00023213]
[1610212928672,0.00030242,40434.0,40433.0,0.13632608]
[1610212929074,0.00030242,40434.0,40433.0,0.13655819]
[1610212931977,0.13632608,40435.0,40433.0,0.13655819]
[1610212932579,0.13632608,40435.0,40434.0,0.00023207]
[1610212936183,0.13632608,40435.0,40424.0,0.00023207]
[1610212936384,0.13632608,40435.0,40434.0,0.00023207]
[1610212936786,0.13632608,40435.0,40427.0,0.13632608]
[1610212936985,0.13632608,40435.0,40434.0,0.00023207]
[1610212937188,0.13632608,40435.0,40428.0,4.11203207]
[1610212937586,0.13632608,40435.0,40429.0,0.00023207]
[1610212938688,0.13632608,40430.0,40429.0,0.00023207]
[1610212938888,0.11387,40444.0,40429.0,0.00023207]
[1610212939088,0.27,40455.0,40429.0,0.00023207]
[1610212939690,0.00030235,40454.0,40429.0,0.00023207]
[1610212940793,0.13632608,40441.0,40440.0,0.13632608]
[1610212941190,0.13632608,40441.0,40440.0,0.00023205]
[1610212941690,0.13632608,40441.0,40429.0,0.00023205]
[1610212942090,0.13632608,40441.0,40440.0,0.00023205]
[1610212942290,0.13632608,40441.0,40438.0,0.11846]
[1610212942492,0.13632608,40441.0,40440.0,0.00023205]
[1610212942792,0.13632608,40441.0,40438.0,0.11846]
[1610212942793,0.13632608,40441.0,40439.0,0.00023205]
[1610212942992,0.13632608,40441.0,40438.0,0.11846]
[1610212943591,0.13632608,40441.0,40439.0,0.00023206]
[1610212944790,0.13632608,40445.0,40440.0,0.13632608]
[1610212945192,0.13632608,40445.0,40441.0,0.00023204]
[1610212946792,0.13632608,40445.0,40439.0,0.00023204]
[1610212946993,0.13632608,40445.0,40438.0,0.11846]
[1610212947192,0.13632608,40445.0,40440.0,0.00023205]
[1610212947594,0.13632608,40445.0,40439.0,0.00023205]
[1610212947794,0.13632608,40445.0,40441.0,0.00023205]
[1610212947994,0.13632608,40445.0,40440.0,0.00023205]
[1610212948399,0.13632608,40445.0,40439.0,0.00023205]
[1610212948596,0.13632608,40445.0,40441.0,0.00023205]
[1610212948795,0.13632608,40445.0,40440.0,0.00023205]
[1610212949197,0.13632608,40445.0,40442.0,0.00023205]
[1610212949397,0.13632608,40445.0,40441.0,0.00023205]
[1610212949596,0.13632608,40445.0,40439.0,0.00023205]
[1610212950800,0.13632608,40440.0,40439.0,0.00023205]
[1610212955505,0.07746,40458.0,40439.0,0.00023205]
[1610212955506,0.07746,40458.0,40439.0,0.43783205]
[1610212955707,0.07746,40458.0,40439.0,0.00023205]
[1610212955908,0.00030232,40455.0,40440.0,0.00023205]
[1610212956106,0.00030232,40455.0,40444.0,2.8868]
[1610212956508,0.00030232,40455.0,40445.0,0.00023203]
[1610212956908,0.00030232,40455.0,40454.0,0.13632608]
[1610212957309,0.00030232,40455.0,40454.0,0.13655807]
[1610212958112,0.3179,40461.0,40454.0,0.13655807]
[1610212958311,0.00030226,40460.0,40455.0,0.00023199]
[1610212958713,0.3179,40461.0,40455.0,0.00023199]
[1610212958915,0.13632608,40456.0,40455.0,0.00023199]
[1610212959414,0.13632608,40456.0,40455.0,0.55643199]
[1610212963419,0.13632608,40456.0,40455.0,0.5562]
[1610212963619,0.13662835,40456.0,40455.0,0.5562]
[1610212969727,0.13662835,40456.0,40438.0,0.11846]
[1610212969927,0.13662835,40456.0,40425.0,2.968]
[1610212970330,0.00030229,40455.0,40439.0,0.00022839]
[1610212970527,0.00030229,40455.0,40426.0,0.01443762]
[1610212970928,0.13632608,40437.0,40436.0,0.13632608]
[1610212971327,0.13632608,40437.0,40436.0,0.13655449]
[1610212975730,0.13632608,40437.0,40436.0,0.00022841]
[1610212976231,0.13632608,40437.0,40426.0,0.0144417]
[1610212976833,0.0994,40458.0,40428.0,0.13632608]
[1610212977231,0.00314887,40460.0,40428.0,0.13632608]
[1610212977432,0.00030234,40457.0,40429.0,0.00022843]
[1610212977632,0.09775234,40457.0,40429.0,0.00022843]
[1610212977832,0.09745,40457.0,40429.0,0.00022843]
[1610212978132,0.00030234,40456.0,40429.0,0.00022843]
[1610212978833,0.13632608,40430.0,40429.0,0.00022843]
[1610212994547,3.82112608,40430.0,40429.0,0.00022843]
[1610212994751,3.82112608,40430.0,40424.0,0.00022857]
[1610212994952,0.13632608,40425.0,40411.0,3.2424]
[1610212995348,0.60932851,40425.0,40424.0,0.0002286]
[1610212995549,0.00030245,40424.0,40412.0,0.0002286]
[1610212995749,0.60902608,40425.0,40412.0,0.0002286]
[1610212996851,0.13632608,40413.0,40412.0,0.0002286]
[1610212998952,0.13632608,40413.0,40412.0,0.13655468]
[1610213000054,0.13632608,40413.0,40412.0,0.13655471]
[1610213003059,0.1556,40430.0,40412.0,0.13655471]
[1610213003259,0.1556,40430.0,40417.0,3.7527]
[1610213003660,0.1556,40430.0,40418.0,0.0002286]
[1610213004261,0.1556,40430.0,40413.0,0.0002286]
[1610213004661,0.1556,40430.0,40426.0,3.0555]
[1610213004860,0.1556,40430.0,40429.0,0.13632608]
[1610213005060,0.13632608,40449.0,40429.0,0.13632608]
[1610213005061,0.1556,40448.0,40429.0,0.13632608]
[1610213005461,0.13632608,40449.0,40429.0,0.13632608]
[1610213005663,0.13632608,40449.0,40436.0,3.5417]
[1610213006063,0.13632608,40449.0,40436.0,3.54192851]
[1610213006465,0.09745,40457.0,40436.0,3.54192851]
[1610213006863,0.13632608,40456.0,40436.0,3.76639459]
[1610213008964,0.13632608,40449.0,40436.0,3.76639459]
[1610213009465,0.1556,40448.0,40436.0,3.76639459]
[1610213010867,0.1556,40448.0,40436.0,0.22469459]
[1610213012870,0.13632608,40441.0,40436.0,0.22469459]
[1610213014268,0.13632608,40441.0,40436.0,0.22446608]
[1610213014470,0.13632608,40441.0,40436.0,0.22469459]
[1610213014769,0.13632608,40441.0,40436.0,0.22446608]
[1610213015670,0.13632608,40441.0,40436.0,0.66676608]
[1610213016269,0.13632608,40441.0,40436.0,0.66699459]
[1610213018974,0.13632608,40441.0,40436.0,0.66676608]
[1610213019877,0.1556,40448.0,40436.0,0.66676608]
[1610213020378,0.1556,40448.0,40436.0,0.66699461]
[1610213022380,0.1556,40448.0,40436.0,2.16699461]
[1610213022581,0.09745,40457.0,40436.0,2.16699461]
[1610213023582,0.09745,40457.0,40436.0,0.66699461]
[1610213023781,0.1556,40467.0,40436.0,0.66699461]
[1610213025486,0.1556,40467.0,40436.0,2.16699461]
[1610213025685,0.1556,40467.0,40436.0,2.18122729]
[1610213025885,0.1556,40467.0,40436.0,2.16699461]
[1610213026086,0.1556,40467.0,40436.0,2.18122704]
[1610213026285,0.1556,40467.0,40436.0,1.73892704]
[1610213026484,0.1556,40467.0,40437.0,0.01446092]
[1610213026685,0.1556,40467.0,40455.0,4.0165]
[1610213026885,0.1556,40467.0,40455.0,4.11204]
[1610213027085,0.1556,40467.0,40466.0,0.13632608]
[1610213027485,0.1556,40485.0,40466.0,0.13632608]
[1610213027685,0.1556,40485.0,40484.0,3.4648]
[1610213028988,0.1556,40485.0,40484.0,3.60112608]
[1610213039598,0.1556,40485.0,40484.0,0.13632608]
[1610213050410,0.15590209,40485.0,40484.0,0.13632608]
[1610213050609,0.15590209,40485.0,40483.0,3.88072]
[1610213051411,0.1556,40485.0,40484.0,0.13632608]
[1610213051612,0.15590211,40485.0,40484.0,0.13632608]
[1610213053314,0.29222819,40485.0,40484.0,0.13632608]
[1610213053716,0.29222819,40485.0,40474.0,0.07997]
[1610213054116,0.00030213,40484.0,40468.0,4.0848]
[1610213055317,0.00030213,40484.0,40475.0,0.13632608]
[1610213055518,0.4312,40482.0,40475.0,0.13632608]
[1610213055917,0.1556,40485.0,40410.0,1.5]
[1610213055918,0.00030217,40481.0,40410.0,1.5]
[1610213056117,3.1278,40469.0,40452.0,3.8115]
[1610213056317,0.07358,40472.0,40456.0,0.00022837]
[1610213056517,3.5653,40461.0,40453.0,0.00022839]
[1610213056919,3.5653,40461.0,40446.0,0.09947]
[1610213057120,3.5653,40461.0,40454.0,0.00022841]
[1610213057319,3.5653,40461.0,40458.0,0.13632608]
[1610213057918,3.5653,40461.0,40459.0,0.00022843]
[1610213058120,0.00030227,40460.0,40459.0,0.00022843]
[1610213059219,0.00030227,40471.0,40453.0,3.1876]
[1610213059420,0.00030227,40460.0,40454.0,0.13632608]
[1610213059620,0.00030227,40460.0,40454.0,0.13655454]
[1610213059819,0.00030227,40470.0,40454.0,0.13655454]
[1610213060020,0.00030227,40459.0,40455.0,0.00022846]
[1610213060219,0.00030227,40469.0,40455.0,0.00022846]
[1610213060419,0.07358,40472.0,40455.0,0.00022846]
[1610213060820,0.00030226,40468.0,40461.0,3.5924]
[1610213061021,0.00030226,40471.0,40462.0,0.00022843]
[1610213061220,0.00030222,40467.0,40462.0,0.00022843]
[1610213061420,0.00030222,40467.0,40466.0,0.13632608]
[1610213061621,0.00030222,40470.0,40466.0,0.69422608]
[1610213061820,0.5527,40484.0,40466.0,0.69445447]
[1610213062022,0.5527,40484.0,40467.0,0.00022839]
[1610213062420,0.00030218,40471.0,40467.0,0.00022839]
[1610213062621,0.00030218,40483.0,40466.0,0.59445447]
[1610213062822,0.5527,40484.0,40466.0,0.59445447]
[1610213063221,0.00030218,40482.0,40466.0,0.59445447]
[1610213063422,0.00030218,40483.0,40481.0,0.13632608]
[1610213063622,0.2823,40484.0,40481.0,0.13632608]
[1610213064023,0.00030217,40482.0,40481.0,0.13632608]
[1610213064223,0.00030217,40483.0,40481.0,0.13632608]
[1610213064422,0.00030217,40482.0,40481.0,0.13632608]
[1610213065023,0.00030217,40483.0,40477.0,3.329]
[1610213065224,0.2823,40484.0,40477.0,3.329]
[1610213065424,0.13632608,40478.0,40477.0,3.329]
[1610213065825,0.13632608,40478.0,40476.0,0.13632608]
[1610213066025,0.13662824,40478.0,40476.0,0.13632608]
[1610213066225,0.00030216,40477.0,40476.0,0.13632608]
[1610213066427,0.00030216,40477.0,40468.0,3.6398]
[1610213067426,0.00030216,40477.0,40474.0,0.13632608]
[1610213067825,0.00030216,40483.0,40474.0,0.13632608]
[1610213068226,0.00030216,40476.0,40474.0,0.13632608]
[1610213068426,0.00030216,40483.0,40474.0,0.13632608]
[1610213068627,0.2823,40484.0,40474.0,0.13632608]
[1610213068827,0.00030216,40482.0,40474.0,0.13632608]
[1610213069236,0.00030216,40483.0,40474.0,0.13632608]
[1610213069429,0.13632608,40475.0,40474.0,0.13632608]
[1610213071334,0.13632608,40475.0,40468.0,3.6398]
[1610213071535,0.13632608,40469.0,40467.0,0.07658]